fUSD/lending_fUSD_20240125
["ID","MTS","AMOUNT","RATE_DAILY","PERIOD"]
[312696474,1706152232934,-4089.00069179,0.00022079,2]
[312696475,1706152232946,-686.85238588,0.00022079,2]
[312696476,1706152232958,-2637.07178691,0.00022079,2]
[312696477,1706152232969,-2551.35266112,0.00022082,2]
[312696478,1706152232978,-499.99,0.00022088,2]
[312696479,1706152232987,-96641.76871277,0.00022089,2]
[312696480,1706152233005,-473.60372956,0.00022089,2]
[312696481,1706152233017,-428.50808,0.00022089,2]
[312696509,1706152238304,-29864.68951033,0.00022089,2]
[312696512,1706152238327,-106223.36916734,0.00022089,2]
[312696514,1706152238336,-500.0,0.00022089,2]
[312696516,1706152238346,-100000.0,0.00022089,2]
[312696518,1706152238397,-965.034,0.00022089,2]
[312696520,1706152238407,-427.77004682,0.00022188,2]
[312696522,1706152238416,-420.1563478,0.00022188,2]
[312696524,1706152238426,-1000.0,0.00022188,2]
[312696526,1706152238436,-4899.28903042,0.00022188,2]
[312696528,1706152238445,-340.68195914,0.00022188,2]
[312696530,1706152238454,-629.3308031,0.00022188,2]
[312696532,1706152238464,-505.67802724,0.00022188,2]
[312696534,1706152238473,-155.60341744,0.00022188,2]
[312696536,1706152238483,-973.66918587,0.00022188,2]
[312696538,1706152238493,-2427.92687746,0.00022188,2]
[312696540,1706152238503,-216.14168765,0.00022188,2]
[312696542,1706152238512,-156.53576946,0.00022188,2]
[312696544,1706152238522,-322.79387885,0.00022188,2]
[312696545,1706152238531,-498.54129537,0.00022188,2]
[312696546,1706152238541,-156.34830885,0.00022189,2]
[312696547,1706152238550,-12834.85268799,0.00022189,2]
[312696548,1706152238559,-1279.20293372,0.00022271,2]
[312696549,1706152238569,-2655.18,0.00022445,2]
[312696550,1706152238578,-187.54,0.00022707,2]
[312696551,1706152238588,-201.63,0.00022832,2]
[312696552,1706152238597,-1000.0,0.000229,2]
[312696553,1706152238606,-123940.50163579,0.00023,2]
[312696554,1706152238616,-223.07409071,0.00023,20]
[312696555,1706152238625,-1835.34,0.0002315,2]
[312696556,1706152238634,-2655.18,0.00023245,2]
[312696557,1706152238644,-800.0,0.00023274,2]
[312696558,1706152238653,-200.0,0.00023274,2]
[312696559,1706152238663,-248.37,0.00023323,2]
[312696560,1706152238672,-150.0,0.000235,2]
[312696562,1706152238682,-2655.18,0.00024046,2]
[312696564,1706152238691,-499.43,0.00024051,2]
[312696566,1706152238700,-210.0,0.00024185,2]
[312696568,1706152238710,-800.0,0.00024219,2]
[312696570,1706152238719,-200.0,0.00024335,2]
[312696572,1706152238728,-1835.34,0.00024794,2]
[312696574,1706152238737,-2655.18,0.00024847,2]
[312696576,1706152238747,-387.62224241,0.00025,2]
[312696578,1706152238757,-159.14140732,0.00025,2]
[312696580,1706152238766,-577.35924802,0.00025,2]
[312696582,1706152238775,-450.0,0.00025,3]
[312696584,1706152238784,-202.84481839,0.00025,2]
[312696586,1706152238795,-168.36,0.0002572,2]
[312696588,1706152238804,-500.0,0.00026,2]
[312696590,1706152238813,-800.0,0.00026183,2]
[312696592,1706152238823,-2718.19981851,0.00026239,7]
[312696594,1706152238832,-11004.0,0.000263,2]
[312696596,1706152238841,-3397.0,0.000263,2]
[312696598,1706152238850,-499.43,0.00026314,2]
[312696600,1706152238861,-1835.34,0.00026438,2]
[312696602,1706152238869,-2254.49,0.00026575,2]
[312696604,1706152238879,-1235.2,0.00026575,2]
[312696606,1706152238888,-293.0,0.00026603,2]
[312696608,1706152238896,-500.0,0.00027,3]
[312696610,1706152238906,-165.74290237,0.00027,2]
[312696612,1706152238916,-200.0,0.00027039,2]
[312696614,1706152238926,-167.31,0.00027183,2]
[312696616,1706152238936,-178.77206168,0.00027387,2]
[312696618,1706152238945,-500.0,0.00027397,2]
[312696620,1706152238954,-541.10677632,0.00027397,2]
[312696622,1706152238965,-330.51,0.00027397,2]
[312696624,1706152238974,-8239.1,0.00027397,2]
[312696626,1706152238983,-584.55,0.00027397,2]
[312696628,1706152238993,-584.55,0.00027556,2]
[312696630,1706152239003,-330.51,0.00027686,2]
[312696633,1706152239012,-584.55,0.00027714,2]
[312696635,1706152239022,-584.55,0.00027872,2]
[312696637,1706152239032,-330.51,0.00027974,2]
[312696639,1706152239042,-584.55,0.0002803,2]
[312696641,1706152239053,-1835.34,0.00028081,2]
[312696643,1706152239063,-584.55,0.00028189,2]
[312696645,1706152239072,-330.51,0.00028262,2]
[312696647,1706152239082,-584.55,0.00028347,2]
[312696649,1706152239092,-584.55,0.00028505,2]
[312696651,1706152239101,-330.51,0.00028551,2]
[312696653,1706152239110,-499.43,0.00028578,2]
[312696655,1706152239120,-584.55,0.00028664,2]
[312696657,1706152239129,-584.55,0.00028822,2]
[312696669,1706152239335,-330.51,0.00028839,2]
[312696670,1706152239346,-550.0,0.00029,3]
[312696671,1706152239355,-176.54,0.00029,2]
[312696672,1706152239364,-2379.58,0.00029009,2]
[312696673,1706152239374,-1399.96,0.00029009,2]
[312696674,1706152239383,-800.0,0.00029092,2]
[312696675,1706152239393,-330.51,0.00029128,2]
[312696676,1706152239402,-71586.0,0.00029403,2]
[312696677,1706152239411,-330.51,0.00029416,2]
[312696678,1706152239420,-176.54,0.00029548,2]
[312696679,1706152239430,-330.51,0.00029704,2]
[312696680,1706152239440,-1835.34,0.00029725,2]
[312696681,1706152239449,-200.0,0.00029743,2]
[312696682,1706152239458,-152.88280839,0.000299,2]
[312696683,1706152239468,-2014.30679956,0.000299,2]
[312696684,1706152239477,-170.64638635,0.000299,2]
[312696685,1706152239487,-168.32412908,0.000299,2]
[312696686,1706152239497,-520.92,0.00029988,2]
[312696687,1706152239507,-330.51,0.00029993,2]
[312696688,1706152239517,-309381.99916143,0.0003,4]
[312696689,1706152239529,-583.29368938,0.0003,2]
[312696690,1706152239538,-155.0,0.0003,2]
[312696691,1706152239547,-9650.17359953,0.0003,2]
[312696692,1706152239557,-12551.99827427,0.0003,4]
[312696693,1706152239567,-512.04453184,0.0003,2]
[312696694,1706152239576,-694.51811641,0.0003,2]
[312696695,1706152239585,-45536.370379,0.0003,4]
[312696696,1706152239596,-5860.71128516,0.0003,4]
[312696697,1706152239605,-7877.86,0.0003,2]
[312696698,1706152239614,-408.52199517,0.0003,2]
[312696699,1706152239624,-408.52199517,0.0003,2]
[312696700,1706152239634,-408.52199517,0.0003,2]
[312696701,1706152239643,-3000.0,0.0003,2]
[312696702,1706152239652,-3000.0,0.0003,2]
[312696703,1706152239662,-157.357135,0.0003,2]
[312696704,1706152239672,-176.54,0.00030096,2]
[312696705,1706152239681,-330.51,0.00030281,2]
[312696706,1706152239691,-330.51,0.00030569,2]
[312696707,1706152239701,-176.54,0.00030644,2]
[312696708,1706152239712,-499.43,0.00030842,2]
[312696709,1706152239722,-330.51,0.00030858,2]
[312696710,1706152239731,-152.88280836,0.0003086,2]
[312696711,1706152239742,-3000.0,0.0003087,2]
[312696712,1706152239751,-600.0,0.00031,3]
[312696713,1706152239761,-330.51,0.00031146,2]
[312696714,1706152239772,-176.54,0.00031192,2]
[312696715,1706152239781,-166.61664257,0.00031335,4]
[312696716,1706152239791,-330.51,0.00031435,2]
[312696717,1706152239800,-180.0,0.00031644,2]
[312696718,1706152239810,-197.92,0.00031644,2]
[312696719,1706152239820,-330.51,0.00031723,2]
[312696720,1706152239830,-176.54,0.0003174,2]
[312696721,1706152239839,-176.54,0.0003174,2]
[312696722,1706152239849,-3984.26542287,0.00031797,2]
[312696723,1706152239859,-500.0,0.00031799,7]
[312696724,1706152239868,-594.74166293,0.00031799,7]
[312696725,1706152239878,-304670.065251,0.000318,2]
[312696726,1706152239887,-2014.30679949,0.00031809,3]
[312696727,1706152239897,-152.88280836,0.0003182,2]
[312696728,1706152239906,-3821.00997196,0.00032,2]
[312696729,1706152239915,-155.82809595,0.00032,4]
[312696730,1706152239926,-800.0,0.00032002,2]
[312696731,1706152239936,-330.51,0.00032011,2]
[312696732,1706152239945,-176.54,0.00032288,2]
[312696733,1706152239954,-330.51,0.000323,2]
[312696734,1706152239964,-200.0,0.00032447,2]
[312696735,1706152239973,-155.82477594,0.000325,2]
[312696736,1706152239982,-330.51,0.00032588,2]
[312696737,1706152239992,-167.31,0.00032619,2]
[312696738,1706152240003,-1256.65900054,0.000327,2]
[312696739,1706152240012,-152.88280836,0.0003278,2]
[312696740,1706152240022,-176.54,0.00032836,2]
[312696741,1706152240032,-330.51,0.00032877,2]
[312696742,1706152240041,-161.53,0.00032877,15]
[312696743,1706152240050,-282.31612789,0.00033,4]
[312696744,1706152240060,-650.0,0.00033,3]
[312696745,1706152240069,-150.1,0.00033,2]
[312696746,1706152240078,-499.43,0.00033106,2]
[312696747,1706152240088,-3000.0,0.0003337,2]
[312696748,1706152240097,-176.54,0.00033384,2]
[312696749,1706152240106,-176.0,0.00033684,2]
[312696750,1706152240116,-2014.30679949,0.00033718,5]
[312696751,1706152240125,-152.88280836,0.0003374,2]
[312696752,1706152240135,-176.54,0.00033932,2]
[312696753,1706152240144,-1000.0,0.00034,4]
[312696754,1706152240153,-176.54,0.0003448,2]
[312696755,1706152240162,-150.0,0.00034548,10]
[312696756,1706152240172,-152.88280836,0.000347,2]
[312696757,1706152240181,-153.51,0.000348,2]
[312696758,1706152240190,-380.45,0.000348,2]
[312696759,1706152240199,-380.45,0.000348,2]
[312696760,1706152240209,-380.45,0.000348,2]
[312696761,1706152240219,-380.45,0.000348,2]
[312696762,1706152240228,-380.45,0.000348,2]
[312696763,1706152240239,-380.45,0.000348,2]
[312696764,1706152240248,-380.45,0.000348,2]
[312696765,1706152240257,-380.45,0.000348,2]
[312696766,1706152240267,-380.45,0.000348,2]
[312696767,1706152240276,-380.45,0.000348,2]
[312696768,1706152240287,-380.45,0.000348,2]
[312696769,1706152240297,-380.45,0.000348,2]
[312696770,1706152240306,-380.45,0.000348,2]
[312696771,1706152240318,-380.45,0.000348,2]
[312696772,1706152240328,-380.45,0.000348,2]
[312696773,1706152240338,-380.45,0.000348,2]
[312696774,1706152240347,-380.45,0.000348,2]
[312696775,1706152240357,-380.45,0.000348,2]
[312696776,1706152240367,-380.45,0.000348,2]
[312696777,1706152240377,-380.45,0.000348,2]
[312696778,1706152240386,-1420.29188972,0.000349,2]
[312696779,1706152240396,-1420.29188967,0.000349,2]
[312696780,1706152240406,-1420.29188967,0.000349,2]
[312696781,1706152240416,-1420.29188967,0.000349,2]
[312696782,1706152240425,-1420.29188967,0.000349,2]
[312696783,1706152240435,-1420.29188967,0.000349,2]
[312696784,1706152240444,-1420.29188967,0.000349,2]
[312696785,1706152240453,-1420.29188967,0.000349,2]
[312696786,1706152240463,-800.0,0.00034911,2]
[312696787,1706152240472,-7999.99,0.00035,14]
[312696788,1706152240482,-1261.86346022,0.00035,4]
[312696789,1706152240492,-700.0,0.00035,3]
[312696790,1706152240501,-280.12915127,0.00035,2]
[312696791,1706152240510,-176.54,0.00035028,2]
[312696792,1706152240519,-1775.03,0.00035136,5]
[312696793,1706152240528,-499.43,0.0003537,2]
[312696794,1706152240538,-1796.25,0.00035388,5]
[312696795,1706152240547,-66729.78668001,0.000355,30]
[312696796,1706152240557,-1420.29188967,0.00035532,2]
[312696797,1706152240566,-2014.30679949,0.00035627,8]
[312696798,1706152240575,-152.88280836,0.0003566,2]
[312696799,1706152240584,-1773.89,0.00035688,5]
[312696800,1706152240594,-3000.0,0.0003587,2]
[312696801,1706152240603,-1797.98,0.00036036,5]
[312696802,1706152240613,-205.0,0.00036386,2]
[312696803,1706152240622,-1817.15,0.00036439,5]
[312696804,1706152240631,-152.88280836,0.0003662,2]
[312696805,1706152240641,-5000.0,0.0003689,7]
[312696806,1706152240650,-1778.05,0.00036922,5]
[312696808,1706152240659,-161.53,0.00036986,15]
[312696810,1706152240668,-750.0,0.00037,3]
[312696812,1706152240678,-778.8580762,0.00037,2]
[312696813,1706152240687,-257.33,0.00037,30]
[312696814,1706152240697,-1420.29188967,0.00037111,2]
[312696815,1706152240707,-205.0,0.00037124,3]
[312696816,1706152240716,-257.33,0.00037137,30]
[312696817,1706152240726,-257.33,0.00037274,30]
[312696818,1706152240735,-172.12827896,0.00037307,12]
[312696819,1706152240746,-257.33,0.00037411,30]
[312696820,1706152240756,-1822.42,0.00037477,5]
[312696821,1706152240765,-2014.30679949,0.00037536,10]
[312696822,1706152240775,-257.33,0.00037548,30]
[312696823,1706152240785,-152.88280836,0.0003758,2]
[312696824,1706152240795,-499.43,0.00037634,2]
[312696825,1706152240804,-257.33,0.00037685,30]
[312696826,1706152240814,-802.0,0.00037699,2]
[312696827,1706152240824,-300.0,0.00037699,2]
[312696828,1706152240834,-500.0,0.00037699,2]
[312696829,1706152240844,-196.71745588,0.000378,2]
[312696830,1706152240855,-2254.49,0.00037808,2]
[312696831,1706152240864,-1235.2,0.00037808,2]
[312696832,1706152240873,-257.33,0.00037822,30]
[312696833,1706152240883,-205.0,0.00037862,5]
[312696834,1706152240893,-2735.0,0.0003789,4]
[312696835,1706152240903,-607142.737361,0.000379,2]
[312696836,1706152240913,-24450.17218279,0.000379,2]
[312696837,1706152240927,-257.33,0.00037959,30]
[312696838,1706152240937,-544124.66250418,0.00037989,2]
[312696839,1706152240946,-1841.23,0.00038071,5]
[312696840,1706152240955,-474.96743432,0.00038096,30]
[312696841,1706152240965,-5621.0,0.0003815,30]
[312696842,1706152240975,-5621.0,0.0003815,60]
[312696843,1706152240985,-184.80694757,0.0003831,7]
[312696844,1706152240995,-213.53561966,0.0003831,7]
[312696845,1706152241004,-3984.26542287,0.00038317,2]
[312696846,1706152241014,-5015.573,0.0003832,2]
[312696847,1706152241024,-2919.206,0.0003832,2]
[312696848,1706152241034,-953.362,0.0003832,2]
[312696849,1706152241043,-2284.904,0.0003832,2]
[312696850,1706152241053,-19792.74,0.0003832,2]
[312696851,1706152241062,-4188.372,0.0003832,2]
[312696852,1706152241071,-1036.73,0.0003832,2]
[312696853,1706152241081,-213.53561965,0.00038331,7]
[312696854,1706152241090,-184.80694758,0.00038331,7]
[312696855,1706152241101,-150.0,0.00038356,2]
[312696856,1706152241110,-3000.0,0.0003837,2]
[312696857,1706152241119,-151.90559164,0.00038422,2]
[312696858,1706152241128,-200.0,0.00038515,5]
[312696859,1706152241138,-152.88280836,0.0003854,2]
[312696860,1706152241147,-205.0,0.000386,7]
[312696861,1706152241156,-4216.0,0.0003865,30]
[312696862,1706152241165,-4216.0,0.0003865,60]
[312696863,1706152241174,-1420.29188967,0.00038689,2]
[312696864,1706152241184,-738.0,0.00038715,5]
[312696865,1706152241193,-1828.0,0.0003874,5]
[312696866,1706152241202,-171.43,0.000388,7]
[312696867,1706152241211,-231.33603672,0.0003888,2]
[312696868,1706152241221,-231.3360367,0.0003888,2]
[312696869,1706152241230,-231.3360367,0.0003888,2]
[312696870,1706152241239,-231.3360367,0.0003888,2]
[312696871,1706152241248,-231.3360367,0.0003888,2]
[312696872,1706152241257,-231.3360367,0.0003888,2]
[312696873,1706152241266,-282.26694691,0.0003898,2]
[312696874,1706152241275,-500.0,0.00038989,2]
[312696875,1706152241285,-976.76437376,0.00039,4]
[312696876,1706152241294,-620.81629579,0.00039,4]
[312696877,1706152241304,-1430.03686544,0.00039,2]
[312696878,1706152241312,-701.12691554,0.00039,10]
[312696879,1706152241322,-197.48451168,0.00039,4]
[312696880,1706152241332,-800.0,0.00039,3]
[312696881,1706152241341,-150.0,0.00039,2]
[312696882,1706152241350,-2810.0,0.0003915,30]
[312696883,1706152241359,-2810.0,0.0003915,60]
[312696884,1706152241369,-153.45120575,0.0003915,30]
[312696885,1706152241378,-153.51,0.000392,3]
[312696886,1706152241387,-153.51,0.000392,3]
[312696887,1706152241397,-380.45,0.000392,3]
[312696888,1706152241405,-380.45,0.000392,3]
[312696889,1706152241414,-380.45,0.000392,3]
[312696890,1706152241423,-380.45,0.000392,3]
[312696891,1706152241433,-380.45,0.000392,3]
[312696892,1706152241441,-380.45,0.000392,3]
[312696893,1706152241451,-380.45,0.000392,3]
[312696894,1706152241460,-380.45,0.000392,3]
[312696895,1706152241469,-380.45,0.000392,3]
[312696896,1706152241478,-380.45,0.000392,3]
[312696897,1706152241487,-380.45,0.000392,3]
[312696898,1706152241497,-380.45,0.000392,3]
[312696899,1706152241506,-380.45,0.000392,3]
[312696900,1706152241515,-380.45,0.000392,3]
[312696901,1706152241525,-380.45,0.000392,3]
[312696902,1706152241535,-380.45,0.000392,3]
[312696903,1706152241545,-380.45,0.000392,3]
[312696904,1706152241554,-380.45,0.000392,3]
[312696905,1706152241565,-380.45,0.000392,3]
[312696906,1706152241574,-380.45,0.000392,3]
[312696907,1706152241586,-428.17171428,0.00039234,31]
[312696908,1706152241595,-170.8,0.0003926,2]
[312696909,1706152241604,-2364.26303728,0.0003931,11]
[312696910,1706152241614,-205.0,0.00039338,9]
[312696911,1706152241624,-176.0,0.00039358,2]
[312696912,1706152241635,-150.0,0.00039366,2]
[312696913,1706152241645,-2014.30679949,0.00039445,13]
[312696914,1706152241656,-491.75034239,0.000395,4]
[312696915,1706152241665,-152.88280836,0.000395,4]
[312696916,1706152241674,-154.4,0.0003953,2]
[312696917,1706152241684,-1787.53,0.00039643,5]
[312696918,1706152241694,-499.43,0.00039898,2]
[312696919,1706152241703,-352.1718683,0.000399,4]
[312696920,1706152241713,-5014.51887002,0.00039923,5]
[312696921,1706152241724,-150.242,0.00039943,2]
[312696922,1706152241735,-856.09,0.00039943,2]
[312696923,1706152241745,-405.073,0.00039943,2]
[312696924,1706152241756,-1360.0,0.00039943,2]
[312696925,1706152241766,-451.225,0.00039943,2]
[312696926,1706152241775,-1837.458,0.00039943,2]
[312696927,1706152241785,-950.623,0.00039943,2]
[312696928,1706152241794,-1857.0,0.00039943,2]
[312696929,1706152241805,-837.0,0.00039943,2]
[312696930,1706152241814,-214.237,0.00039943,2]
[312696931,1706152241823,-364.171,0.00039943,2]
[312696932,1706152241833,-428.495,0.00039943,2]
[312696933,1706152241842,-236.0,0.00039943,2]
[312696934,1706152241851,-1147.348,0.00039943,2]
[312696935,1706152241860,-865.0,0.00039943,2]
[312696936,1706152241870,-370.15,0.00039943,2]
[312696937,1706152241880,-509.098,0.00039943,2]
[312696938,1706152241889,-2272.01463956,0.0004,4]
[312696939,1706152241898,-155.0,0.0004,2]
[312696940,1706152241908,-1085.37856486,0.0004,4]
[312696941,1706152241918,-2681.30267079,0.0004,4]
[312696942,1706152241930,-22049.77147498,0.0004,4]
[312696943,1706152241939,-569.5924431,0.0004,4]
[312696944,1706152241948,-54328.02898102,0.0004,4]
[312696945,1706152241958,-608.48,0.0004,14]
[312696946,1706152241969,-569.12017158,0.0004,2]
[312696947,1706152241979,-192.97765448,0.0004,4]
[312696948,1706152241989,-961.81967318,0.0004,4]
[312696949,1706152242149,-155.33981355,0.0004,4]
[312696950,1706152242159,-155.40553162,0.0004,4]
[312696951,1706152242169,-150.0,0.0004,20]
[312696952,1706152242179,-150.0,0.0004,2]
[312696953,1706152242188,-1000.0,0.0004,32]
[312696954,1706152242198,-388.59754163,0.0004001,15]
[312696955,1706152242208,-205.0,0.00040076,11]
[312696956,1706152242218,-280.0,0.0004019,2]
[312696957,1706152242227,-169.83664892,0.00040195,2]
[312696958,1706152242237,-48358.35477986,0.00040201,5]
[312696959,1706152242647,-2192.4,0.00040201,5]
[312696960,1706152242662,-5004.24522014,0.00040201,5]
[312696961,1706152242671,-1040.07194003,0.00040268,5]
[312696962,1706152242682,-380.21994964,0.00040268,5]
[312696963,1706152242692,-279.39887565,0.0004029,2]
[312696964,1706152242703,-342.79972744,0.0004029,2]
[312696965,1706152242716,-2039.91657473,0.0004029,2]
[312696966,1706152242787,-1003.79804993,0.0004029,2]
[312696967,1706152242829,-12650.1003,0.0004029,2]
[312696968,1706152242840,-16.98647225,0.0004029,2]
[312696969,1706152242849,-768.46266996,0.0004029,2]
[312696970,1706152242877,-1162.71989097,0.0004029,2]
[312696971,1706152242890,-819.54426237,0.0004029,2]
[312696972,1706152242903,-521.05461648,0.0004029,2]
[312696973,1706152243381,-1000.0,0.00021989,2]
[312696974,1706152243391,-250.0,0.00024658,2]
[312696975,1706152243400,-285.25484492,0.0004029,2]
[312696976,1706152243612,-3977.9637153,0.0004029,2]
[312696977,1706152243621,-29.19537004,0.00040301,2]
[312696978,1706152243670,-120.80462996,0.00040301,2]
[312696979,1706152243679,-150.0,0.00040301,2]
[312696980,1706152243688,-78.26012187,0.00040301,2]
[312696982,1706152243782,-104.42987813,0.00040301,2]
[312696983,1706152243792,-150.0,0.00040301,2]
[312696984,1706152243802,-129.10377592,0.00040301,2]
[312696986,1706152243818,-116.99622408,0.00040301,2]
[312696987,1706152243828,-150.0,0.00040301,2]
[312696989,1706152243838,-150.0,0.00040301,2]
[312696990,1706152243848,-294.83,0.00040301,2]
[312696991,1706152243857,-150.0,0.00040301,2]
[312696992,1706152243868,-150.0,0.00040301,2]
[312696993,1706152243877,-294.83,0.00040301,2]
[312696994,1706152243888,-150.0,0.00040301,2]
[312696995,1706152243898,-150.0,0.00040301,2]
[312696996,1706152243908,-150.0,0.00040301,2]
[312696997,1706152243918,-150.0,0.00040301,2]
[312696998,1706152243931,-294.83,0.00040301,2]
[312696999,1706152243943,-150.0,0.00040301,2]
[312697000,1706152243952,-150.0,0.00040301,2]
[312697001,1706152243961,-294.83,0.00040301,2]
[312697002,1706152243970,-150.0,0.00040301,2]
[312697003,1706152243980,-150.0,0.00040301,2]
[312697004,1706152243989,-150.0,0.00040301,2]
[312697005,1706152244000,-150.0,0.00040301,2]
[312697006,1706152244010,-223.71,0.00040301,2]
[312697007,1706152244020,-150.0,0.00040301,2]
[312697008,1706152244030,-150.0,0.00040301,2]
[312697009,1706152244040,-150.0,0.00040301,2]
[312697010,1706152244049,-150.0,0.00040301,2]
[312697011,1706152244059,-150.0,0.00040301,2]
[312697012,1706152244069,-150.0,0.00040301,2]
[312697013,1706152244078,-150.0,0.00040301,2]
[312697014,1706152244087,-150.0,0.00040301,2]
[312697015,1706152244096,-150.0,0.00040301,2]
[312697016,1706152244105,-150.0,0.00040301,2]
[312697017,1706152244114,-150.0,0.00040301,2]
[312697018,1706152244298,-150.0,0.00040301,2]
[312697019,1706152244308,-150.0,0.00040301,2]
[312697020,1706152244317,-150.0,0.00040301,2]
[312697021,1706152244327,-150.0,0.00040301,2]
[312697022,1706152244336,-297.39,0.00040301,2]
[312697023,1706152244346,-150.0,0.00040301,2]
[312697024,1706152244355,-150.0,0.00040301,2]
[312697025,1706152244364,-139.13804014,0.00040301,2]
[312697026,1706152244780,-1256.65900047,0.000327,2]
[312697027,1706152244791,-10.86195986,0.00040301,2]
[312697028,1706152244800,-150.0,0.00040301,2]
[312697029,1706152244810,-150.0,0.00040301,2]
[312697030,1706152244819,-394.56,0.00040301,2]
[312697031,1706152244829,-341.07366047,0.00040307,2]
[312697032,1706152244839,-185.40653625,0.00040307,2]
[312697033,1706152244848,-7009.54698711,0.00040309,2]
[312697034,1706152244867,-381.87407514,0.00040309,2]
[312697035,1706152244887,-56255.55777015,0.00040309,2]
[312697036,1706152244896,-1749.66325237,0.00040309,120]
[312697037,1706152244905,-1035.36581287,0.00040309,20]
[312697038,1706152244927,-3003.81761345,0.00040309,20]
[312697039,1706152244937,-179.08962977,0.00040309,120]
[312697040,1706152244946,-21841.92517815,0.00040309,120]
[312697041,1706152244955,-165.44232125,0.00040309,60]
[312697042,1706152244965,-766.94088998,0.00040309,2]
[312697043,1706152244974,-167.94873135,0.00040309,120]
[312697044,1706152244984,-151.23923367,0.00040309,30]
[312697045,1706152244993,-297.58165119,0.00040309,30]
[312697046,1706152245004,-189.7724663,0.00040309,30]
[312697047,1706152245014,-17962.12808111,0.00040309,31]
[312697048,1706152245024,-9531.4132789,0.00040309,7]
[312697049,1706152245033,-27896.30488542,0.00040309,90]
[312697050,1706152245043,-165545.29828161,0.00040309,2]
[312697051,1706152245052,-16099.27376884,0.00040309,2]
[312697052,1706152245061,-1219.65749535,0.00040309,2]
[312697066,1706152246303,-393.88393787,0.00040309,2]
[312697068,1706152246315,-1423.82121865,0.00040309,2]
[312697074,1706152246418,-466.70474391,0.00040309,2]
[312697075,1706152246437,-709.07093086,0.00040309,2]
[312697076,1706152246470,-403.53386833,0.00040309,2]
[312697077,1706152246527,-6878.06744046,0.00040309,2]
[312697078,1706152246540,-382.98981488,0.00040309,2]
[312697079,1706152246553,-308.87403957,0.00040309,2]
[312697080,1706152246615,-644.49028153,0.00040309,2]
[312697081,1706152246624,-1210.0,0.00040309,2]
[312697082,1706152246634,-2111.05211211,0.00040309,2]
[312697083,1706152246644,-333.03772649,0.00040309,2]
[312697084,1706152246653,-243.99173909,0.00040309,30]
[312697085,1706152246663,-2876.9059345,0.00040309,2]
[312697086,1706152246674,-5773.56172026,0.00040309,2]
[312697087,1706152246683,-1454.80506831,0.00040309,2]
[312697088,1706152246693,-202.15541771,0.00040309,2]
[312697089,1706152246737,-2031.38407312,0.00040309,2]
[312697090,1706152246754,-4820.58339445,0.00040309,2]
[312697091,1706152246764,-158.08632445,0.00040309,120]
[312697092,1706152246773,-717.25244834,0.00040309,30]
[312697093,1706152246782,-2615.73601126,0.00040309,2]
[312697094,1706152246791,-2348.41396261,0.00040309,2]
[312697095,1706152246801,-2279.26790129,0.00040309,2]
[312697103,1706153433262,-524.5238454,0.00021881,2]
[312697104,1706153433272,-192.0,0.00021882,2]
[312697105,1706153433283,-165.78079179,0.00021888,2]
[312697106,1706153433296,-906.6386,0.00021889,2]
[312697107,1706153433305,-3009.26205352,0.00021987,2]
[312697108,1706153433315,-150.0,0.00021988,2]
[312697109,1706153433325,-500.0,0.00021989,2]
[312697110,1706153433335,-34356.71675168,0.00021989,2]